Cogmind - Beta 12 @@@ ROGUE MODE // 2023.09.08 @ 02:15:13 Player: haldagan Result: Destroyed by S-10 Pest with Light Assault Rifle Performance ------------- Evolutions (0) 0 Regions Visited (4) 800 Robots Destroyed (28) 140 Value Destroyed (668) 668 Prototype IDs (23) 460 Alien Tech Used (0) 0 Bonus (300) 300 TOTAL SCORE: 2368 Bonus ------- Aligned with FarCom 300 Cogmind --------- Core Integrity 0/250 Matter 251/300 Energy 250/250 System Corruption 0% Temperature Cool (0) Movement Treading (560) Ox5 Location -9/Mines Parts ------- > --- POWER (1) -------- Ion Engine > --- PROPULSION (2) --- Light Treads Light Treads > --- UTILITY (2) ------ Humpback > --- WEAPON (2) ------- Light Assault Rifle Light Assault Rifle > --- INVENTORY (35) --- Light Ion Engine Light Ion Engine Nuclear Core Reinforced Deuterium Engine Fission Core Aluminum Leg Aluminum Leg Aluminum Leg Heat Sink Humpback Humpback Core Shielding Medium Armor Plating Hardened Light Armor Plating Shield Generator Trap Reconfigurator Particle Gun Particle Gun EMP Blaster Mining Laser Hammer Hammer Peak State ------------ > --- POWER ------------ Light Ion Engine > --- PROPULSION ------- Aluminum Leg Aluminum Leg > --- UTILITY ---------- Huge Storage Unit Hardened Light Armor Plating > --- WEAPON ----------- Spread Laser Spread Laser > --- INVENTORY -------- Ion Engine Light Treads Light Treads Aluminum Leg Aluminum Leg Aluminum Leg Aluminum Leg Aluminum Leg Huge Storage Unit Signal Interpreter ECM Suite Weapon Shielding Medium Armor Plating Hardened Light Armor Plating Hardened Light Armor Plating Shield Generator Shield Generator Particle Gun Particle Gun Spread Laser Spread Laser EMP Blaster EMP Blaster Hammer Hammer [Rating: 13] Favorites ----------- Power Light Ion Engine Engine Light Ion Engine Propulsion Aluminum Leg Treads Light Treads Leg Aluminum Leg Wheel Wheel Utility Huge Storage Unit Storage Huge Storage Unit Processor Signal Interpreter Protection Weapon Shielding Weapon Spread Laser Energy Gun Spread Laser Ballistic Gun Light Assault Rifle Build | -11 -10 -10 -10 -9 ------- Run | Jun Mat Min Exi Min Slots Evolved . | . . . . . Power . | . . . . . Propulsion . | . . . . . Utility . | . . . . . Weapon . | . . . . . Parts Attached 33 | 6 16 10 1 . Power 4 | 1 2 1 . . Engine 4 | 1 2 1 . . Core . | . . . . . Reactor . | . . . . . Propulsion 11 | 2 4 5 . . Treads 2 | . . 2 . . Leg 7 | . 4 3 . . Wheel 2 | 2 . . . . Hover . | . . . . . Flight . | . . . . . Utility 7 | 1 4 1 1 . Device . | . . . . . Storage 3 | 1 1 . 1 . Processor 1 | . . 1 . . Hackware . | . . . . . Protection 3 | . 3 . . . Artifact . | . . . . . Weapon 11 | 2 6 3 . . Energy Gun 6 | 2 3 1 . . Energy Cannon . | . . . . . Ballistic Gun 5 | . 3 2 . . Ballistic Cannon . | . . . . . Launcher . | . . . . . Special Weapon . | . . . . . Impact Weapon . | . . . . . Slashing Weapon . | . . . . . Piercing Weapon . | . . . . . Special Melee Weapon . | . . . . . Unidentified Prototypes . | . . . . . Parts Lost 12 | . 4 1 7 . Power . | . . . . . Propulsion 3 | . 1 . 2 . Utility 2 | . . . 2 . Weapon 7 | . 3 1 3 . Highest Loss Streak 7 | . 3 1 7 . To Critical Strikes . | . . . . . Average Slot Usage (%) 94 | . 94 96 91 . Engine 13 | . 14 13 14 . Treads 9 | . . 3 28 . Leg 18 | . 26 24 . . Storage 14 | . 14 14 14 . Processor 3 | . . 5 5 . Protection 7 | . 12 8 . . Energy Gun 15 | . 22 20 . . Ballistic Gun 10 | . 2 4 28 . Naked Turns . | . . . . . Heaviest Build 207 | 12 94 94 207 . Greatest Support 40 | 26 26 40 40 . Greatest Overweight (x) 5 | . 4 4 5 . Average Overweight (x) 3 | . 3 3 3 . Largest Inventory Capacity 35 | 8 25 25 35 35 Average Capacity 25 | 6 22 25 30 35 Most Carried 25 | 6 25 25 25 24 Average Carried 21 | 3 18 24 22 24 Final Capacity 35 | 8 25 25 35 35 Final Carried 25 | 6 25 25 24 24 Class Distribution -------------------- 82% | Mutant 17% | Hauler-Mutant Dominant Class ---------------- Mutant | -10/Materials Mutant | -10/Mines Hauler-Mutant | -10/Exiles Hauler-Mutant | -9/Mines Resources | -11 -10 -10 -10 -9 ----------- Run | Jun Mat Min Exi Min Matter Collected 681 | 203 297 181 . . Remotely . | . . . . . Salvage Created 648 | . 491 141 . 16 Parts 55 | . 41 13 . 1 Haulers Intercepted . | . . . . . Recyclers Shooed 1 | . 1 . . . Parts Field Recycled . | . . . . . Retrieved Matter . | . . . . . Parts Self-Destructed . | . . . . . Prevented . | . . . . . Kills | -11 -10 -10 -10 -9 ------- Run | Jun Mat Min Exi Min Combat Hostiles Destroyed 24 | . 16 7 . 1 Guns 24 | . 16 7 . 1 Classes Destroyed 4 | . 4 . . . Builder 1 | . 1 . . . Watcher 3 | . 3 . . . Swarmer 10 | . 6 3 . 1 Grunt 14 | . 10 4 . . Best Kill Streak 3 | . 3 2 . 1 Combat Bots Only 3 | . 3 2 . 1 Max Kills in Single Turn 2 | . 2 1 . 1 Gunslinging 1 | . 1 . . . Exploded . | . . . . . Melee . | . . . . . Uniques/NPCs Destroyed . | . . . . . Combat | -11 -10 -10 -10 -9 -------- Run | Jun Mat Min Exi Min Damage Taken 1177 | . 838 290 . 49 Core 254 | . 172 60 . 22 Absorbed by Shields . | . . . . . Redirected to Shielding 25 | . 25 . . . Regen/Repaired (Parts) 46 | . 46 . . . Core Remaining (%) 100 | 100 . . . . Volleys Fired 83 | . 59 22 . 2 Largest 2 | . 2 2 . 2 Hottest 130 | . 130 130 . 40 Shots Fired 143 | . 104 35 . 4 Gun 143 | . 104 35 . 4 Cannon . | . . . . . Launcher . | . . . . . Special . | . . . . . Kinetic 66 | . 58 4 . 4 Thermal 71 | . 40 31 . . Explosive . | . . . . . Electromagnetic 6 | . 6 . . . Robot Hit Streak 9 | . 9 6 . 1 Robot Miss Streak 10 | . 6 10 . 3 Penetration Max . | . . . . . Secondary Targets 3 | . 3 . . . Max Gunslinging Chain 1 | . 1 . . . Shots Hit Robots 105 | . 74 30 . 1 Core Hits 81 | . 50 30 . 1 Critical Kills . | . . . . . Critical Parts Destroyed . | . . . . . Critical Strikes . | . . . . . Melee Attacks . | . . . . . Impact . | . . . . . Slashing . | . . . . . Piercing . | . . . . . Sneak Attacks . | . . . . . Combat Hostiles . | . . . . . Follow-up Attacks . | . . . . . Damage Inflicted 1204 | . 863 325 . 16 Guns 1199 | . 861 322 . 16 Cannons . | . . . . . Explosions . | . . . . . Melee . | . . . . . Ramming 5 | . 2 3 . . Kinetic 434 | . 409 9 . 16 Thermal 721 | . 408 313 . . Explosive . | . . . . . Electromagnetic 44 | . 44 . . . Impact . | . . . . . Slashing . | . . . . . Piercing . | . . . . . Highest Corruption . | . . . . . Average Corruption . | . . . . . Corruption Purged . | . . . . . Corruption Blocked . | . . . . . Overload Shots . | . . . . . Overflow Damage . | . . . . . Projectiles . | . . . . . Explosions . | . . . . . Melee . | . . . . . Knockbacks . | . . . . . Impact . | . . . . . Kinetic . | . . . . . Secondary . | . . . . . Self-Inflicted Damage . | . . . . . Shots . | . . . . . Rammed . | . . . . . Targets Rammed 2 | . 1 1 . . Kicked 2 | . 1 1 . . Crushed . | . . . . . Highest Temperature 501 | . 366 501 . . Average Temperature 142 | . 95 210 . . Received Heat Transfer 447 | . 300 147 . . Effects 9 | . 2 7 . . Shutdowns 2 | . . 2 . . Energy Bleed 3 | . 1 2 . . Interference 1 | . 1 . . . Matter Decay 2 | . . 2 . . Short Circuit 1 | . . 1 . . Siege Activations . | . . . . . Robots Corrupted . | . . . . . Combat Hostiles . | . . . . . Parts Fried . | . . . . . Impact Corruptions . | . . . . . Robots Melted . | . . . . . Combat Hostiles . | . . . . . Parts Melted . | . . . . . Heat Transferred 1039 | . 649 390 . . Parts Sabotaged . | . . . . . Parts Stolen . | . . . . . Parts Stripped . | . . . . . Power Chain Reactions . | . . . . . Missiles Intercepted . | . . . . . Alert | -11 -10 -10 -10 -9 ------- Run | Jun Mat Min Exi Min Peak Influence 266 | . 266 85 . 35 Initial . | . . . . . Average 36 | . 49 22 . 31 Maximum Alert Level 1 | . 1 . . . Low Security (%) 96 | 100 92 100 . 100 Level 1 3 | . 7 . . . Level 2 . | . . . . . Level 3 . | . . . . . Level 4 . | . . . . . Level 5 . | . . . . . High Security . | . . . . . Max Security . | . . . . . Squads Dispatched 2 | . 2 . . . Investigation 1 | . 1 . . . Extermination . | . . . . . Reinforcement 1 | . 1 . . . Assault . | . . . . . Garrison . | . . . . . Intercept . | . . . . . Searches Triggered . | . . . . . Construction Impeded . | . . . . . Haulers Reinforced . | . . . . . Active Scanning Responses . | . . . . . Cargo Convoy Interrupts . | . . . . . Stealth | -11 -10 -10 -10 -9 --------- Run | Jun Mat Min Exi Min Distress Signals 2 | . 2 . . . Communications Jammed . | . . . . . Distress Signals . | . . . . . Times Spotted 43 | . 29 11 . 3 Peak Tracking Total 4 | . 4 3 . 3 Tactical Retreats 2 | . 1 1 . . Traps | -11 -10 -10 -10 -9 ------- Run | Jun Mat Min Exi Min Traps Triggered 3 | . 3 . . . Indirectly . | . . . . . Trap Hack Attempts . | . . . . . Triggered . | . . . . . Disarmed . | . . . . . Reprogrammed . | . . . . . Reused . | . . . . . Traps Extracted . | . . . . . Installed . | . . . . . Triggered 1 | . . 1 . . Machines | -11 -10 -10 -10 -9 ---------- Run | Jun Mat Min Exi Min Machines Disabled . | . . . . . Max in Single Turn . | . . . . . Machines Repaired . | . . . . . Machines Sabotaged . | . . . . . Overloaded Fab Kills . | . . . . . Hacking | -11 -10 -10 -10 -9 --------- Run | Jun Mat Min Exi Min Machines Accessed 6 | . 5 . 1 . Terminals 3 | . 3 . . . Fabricators . | . . . . . Repair Stations 1 | . 1 . . . Recycling Units 1 | . 1 . . . Scanalyzers . | . . . . . Garrison Access . | . . . . . Total Hacks 11 | . 10 . 1 . Successful 7 | . 6 . 1 . Failed 4 | . 4 . . . Catastrophic . | . . . . . Database Lockouts . | . . . . . Manual 1 | . . . 1 . Terminals 5 | . 5 . . . Fabricators . | . . . . . Repair Stations 4 | . 4 . . . Recycling Units 1 | . 1 . . . Scanalyzers . | . . . . . Garrison Access . | . . . . . Terminal Hacks 4 | . 3 . 1 . Emergency Access Points 2 | . 2 . . . Locate Traps 1 | . 1 . . . EX-Prototype ID Bank 1 | . . . 1 . Fabricator Hacks . | . . . . . Repair Station Hacks 2 | . 2 . . . Scan Component 1 | . 1 . . . Repair 1 | . 1 . . . Recycling Unit Hacks 1 | . 1 . . . Report Inventory 1 | . 1 . . . Scanalyzer . | . . . . . Garrison Access Hacks . | . . . . . Unauthorized Hacks . | . . . . . Terminals . | . . . . . Fabricators . | . . . . . Repair Stations . | . . . . . Recycling Units . | . . . . . Scanalyzers . | . . . . . Garrison Access . | . . . . . Data Cores Recovered . | . . . . . Used . | . . . . . Hacking Detections 4 | . 4 . . . Full Trace Events 1 | . 1 . . . Feedback Events . | . . . . . Feedback Blocked . | . . . . . Robot Schematics Acquired . | . . . . . Robots Built . | . . . . . Authchips . | . . . . . Time . | . . . . . Total Robot Build Rating . | . . . . . Part Schematics Acquired . | . . . . . Parts Built . | . . . . . Authchips . | . . . . . Time . | . . . . . Total Part Build Rating . | . . . . . Parts Repaired 1 | . 1 . . . Time 26 | . 26 . . . Parts Recycled . | . . . . . Recycled Matter . | . . . . . Retrieved Matter . | . . . . . Retrieved Components . | . . . . . Parts Scanalyzed . | . . . . . Part Schematics Acquired . | . . . . . Parts Damaged . | . . . . . Bothacking | -11 -10 -10 -10 -9 ------------ Run | Jun Mat Min Exi Min Used RIF Installer . | . . . . . Robots Hacked . | . . . . . Non-combat . | . . . . . Combat . | . . . . . Robot Hacks Applied . | . . . . . Relay Couplers Released . | . . . . . Fabnet Peak Effective % . | . . . . . Robots Rewired . | . . . . . Allies Hacked . | . . . . . Hacks Repelled . | . . . . . Allies | -11 -10 -10 -10 -9 -------- Run | Jun Mat Min Exi Min Total Allies . | . . . . . Largest Group . | . . . . . Highest-Rated Group . | . . . . . Highest-Rated Ally . | . . . . . Total Orders . | . . . . . Ally Attacks . | . . . . . Total Damage . | . . . . . Kills . | . . . . . Allies Corrupted . | . . . . . Allies Melted . | . . . . . Intel | -11 -10 -10 -10 -9 ------- Run | Jun Mat Min Exi Min Robot Analysis Total . | . . . . . Derelict Logs Recovered 1 | . . 1 . . Drone Launches . | . . . . . Drone Recoveries . | . . . . . Exploration | -11 -10 -10 -10 -9 ------------- Run | Jun Mat Min Exi Min Turns Passed 7525 | 57 2814 2519 2131 4 Spaces Moved 1938 | 47 773 624 494 . Core 7 | 7 . . . . Treads 599 | . . 105 494 . Legs 1203 | . 684 519 . . Wheels 129 | 40 89 . . . Hover . | . . . . . Flight . | . . . . . Fastest Speed 50 | 50 90 320 320 . Average Speed 365 | 84 326 386 427 . Slowest Speed 560 | 90 400 400 560 . Overloaded Moves . | . . . . . Propulsion Burnouts . | . . . . . Robots Hopped . | . . . . . Cave-ins Triggered . | . . . . . Exploration Rate (%) 56 | 4 98 100 76 5 Regions Visited 4 Branch Regions 3 Pre-discovered Areas 1 | . . 1 . . Known Exits Taken 2 | . . 1 1 . Unknown Exits Taken 2 | 1 1 . . . Scrap Searched 3 | . . 3 . . Spaces Dug . | . . . . . Terrain Destroyed . | . . . . . Melee . | . . . . . Projectile . | . . . . . AOE . | . . . . . Terrain Rammed . | . . . . . Walls Destroyed . | . . . . . Machines Disabled . | . . . . . Actions | -11 -10 -10 -10 -9 --------- Run | Jun Mat Min Exi Min Total 2251 | 64 970 697 518 2 Wait 95 | . 71 24 . . Move 1934 | 46 772 623 493 . Hop . | . . . . . Pick Up 79 | 12 38 9 20 . Fast Attach . | . . . . . Attach 21 | 6 11 3 1 . Detach . | . . . . . Swap 12 | . 5 7 . . Drop 25 | . 13 8 4 . Fire 83 | . 59 22 . 2 Melee . | . . . . . Ram . | . . . . . Kick 2 | . 1 1 . . Crush . | . . . . . Escape Stasis . | . . . . . Rewire . | . . . . . Trap . | . . . . . Miscellaneous . | . . . . . Route ------- -11/Junkyard -10/Materials (discovered 4 exits: *Mat x3 / [*Min]) -10/Mines (discovered 3 exits: *Mat x2 / *Exi) -10/Exiles (discovered 2 exits: *Min x2) -9/Mines History --------- Turn | Location | Event 9 | -11/Junkyard | Discovered new exit (range 15) 58 | -11/Junkyard | Entered Materials 315 | -10/Materials | Build established: Mutant 380 | -10/Materials | Discovered new exit (range 14) 398 | -10/Materials | Lost 3 parts (3w) 684 | -10/Materials | Discovered new exit (range 16) 1023 | -10/Materials | Repaired Aluminum Leg 1256 | -10/Materials | Core integrity fell below 50% 1323 | -10/Materials | Discovered new exit (range 16) 2090 | -10/Materials | Discovered new exit (range 8) 2872 | -10/Materials | Entered Mines 4089 | -10/Mines | Found a hidden stash of uninstalled traps 4245 | -10/Mines | Discovered new exit (range 11) 4329 | -10/Mines | Identified exit to Materials 4475 | -10/Mines | Core integrity fell below 20% 4511 | -10/Mines | Discovered exit to Materials (range 4) 5378 | -10/Mines | Deemed a non-threat by the Exiles lab entrance 5378 | -10/Mines | Discovered new exit (range 5) 5388 | -10/Mines | Identified exit to Exiles 5391 | -10/Mines | Entered Exiles 5471 | -10/Exiles | Met 8R-AWN 5574 | -10/Exiles | Discovered new exit (range 14) 5606 | -10/Exiles | Identified exit to Mines 5721 | -10/Exiles | Met EX-HEX 5891 | -10/Exiles | Met EX-DEC 5949 | -10/Exiles | Visited The Gauntlet 6166 | -10/Exiles | Discovered exit to Mines (range 11) 6295 | -10/Exiles | Lost 7 parts (2n2u3w) 6552 | -10/Exiles | Build established: Hauler-Mutant 6628 | -10/Exiles | Met EX-BIN 6706 | -10/Exiles | Aligned with FarCom system 6712 | -10/Exiles | Given EX-Vault access code 6852 | -10/Exiles | Opened EX-Vault 6914 | -10/Exiles | Found Trap Reconfigurator 7038 | -10/Exiles | Warned to stay clear of 0b10 Research branches 7522 | -10/Exiles | Left Exiles lab with Trap Reconfigurator 7522 | -10/Exiles | Entered Mines 7526 | -9/Mines | Destroyed by S-10 Pest with Light Assault Rifle Last Messages --------------- the 0b10 Research branches, since the FarCom signals could be picked up there, but you're welcome to try if you really want to. And if we have to leave here due to unforeseen circumstances, don't worry the FarCom system will continue to maintain contact via our distributed network. EX-BIN: And don't even think about spreading that code around. We're gonna change it right after you leave. Most certainly not to something like 1234 which I did last time as a little joke and some thief managed to sneak in here and steal a few of HEX's prototypes. 07374_ Acquired Rigged Fission Core. 07408_ Acquired Rigged Nuclear Core. 07432_ Acquired Rigged Rnf. Deuterium Engine. LOCATION=MINES GOAL=ESCAPE 07522_ Receiving FarCom transmissions... 07522_ S-10 Pest destroyed. Map ----- +----------------------------------------------------+ | ?????????????????????????????????????????????????? | | ?????????????????????????????????????????????????? | | ?????????????????????????????????????????????????? | | ?????????????????????????????????????????????????? | | ?????????????????????????????????????????????????? | | ?????????????????????????????????????????????????? | | ?????????????????????????????????????????????????? | | ?????????????????????????????????????????????????? | | ?????????????????????????????????????????????????? | | ?????????????????????????????????????????????????? | | ?????????????????????????????????????????????????? | | ?????????????????????????????????????????????????? | | ?????????????????????????????????????????????????? | | ?????????????????????????????????????????????????? | | ?????????????????????????????????????????????????? | | ?????????????????????????????????????????????????? | | ?????????????????????????????????????????????????? | | ?????????????????????????????????????????????????? | | ?????????????????????????????????????????????????? | | ?????????????????????????????????????????????????? | | ?????????????????##??????????????????????????????? | | ????????????????## ????????????????????????????? | | ???????????# ## ?##########????????????????? | | ?????????? #s #????????????????? | | ?????????? ss #????????????????? | | ?????????? @ """ #????????????????? | | ?????????? $ ### """ #????????????????? | | ???????????????????????# """ #????????????????? | | ???????????????????????##########????????????????? | | ?????????????????????????????????????????????????? | | ?????????????????????????????????????????????????? | | ?????????????????????????????????????????????????? | | ?????????????????????????????????????????????????? | | ?????????????????????????????????????????????????? | | | | | | | | | | | | | | | | | | | | | | | | | | | | | | | | | +----------------------------------------------------+ Best States ------------- Heat Dissipation 25 Energy Generation 10 Energy Capacity 250 Matter Stores 300 Matter Capacity 300 Sight Range 16 Terrain Scan Density 10 Armor Coverage 150 Weapon Shielding 33 Evasion (%) 55 Recoil Reduction 2 Item Schematics ----------------- None Robot Schematics ------------------ None Fabricated ------------ Nothing Alien Tech Used ----------------- None Achievements -------------- None Challenges ------------ None Game ------ Seed DisruptorComponentBoosters Manual? 0 Play Time 00:23:26 Cumulative 19.7 hours Start 2023.09.08 @ 01:51:32 End 2023.09.08 @ 02:15:13 Sessions 1 Manual Loads 0 Difficulty Rogue Special Mode None Game No. 25 Rogue 25 Adventurer 0 Explorer 0 Win Type - Total 0 Types 0/0/0/0/0/0/0/0/0 Lore% 19 Gallery% 22 Achievement% 19 Wizard Run 0 Options --------- ASCII 0 Keyboard 0 Movement Numpad Keybinds 0 Fullscreen 1 Font 16/SmallcapsGlow Map View 50x54 Tactical HUD 1 Map Filters NONE Filters NONE Steam 1 RUN: 51f32304-0e72-42fd-94c4-d7869c36e283